lending/lending_fUSD_20240128
["ID","MTS","AMOUNT","RATE_DAILY","PERIOD"]
[312896072,1706434240051,-1634.06535474,0.000318,3]
[312896074,1706434240060,-156.45158618,0.00032,4]
[312896076,1706434240069,-378.89444523,0.00032,2]
[312896078,1706434240079,-749.67689011,0.00032,2]
[312896079,1706434240087,-500.0,0.00032098,2]
[312896080,1706434240096,-1789.09899512,0.00032428,14]
[312896081,1706434240106,-339.32183681,0.00032428,2]
[312896082,1706434240115,-312.17671248,0.000325,2]
[312896083,1706434240125,-403.89,0.00032514,2]
[312896084,1706434240133,-500.0,0.00032761,2]
[312896085,1706434240142,-5388.28361922,0.0003278,5]
[312896086,1706434240151,-1716.78142956,0.00033,4]
[312896088,1706434240161,-750.0,0.00033,3]
[312896090,1706434240169,-1808.59703623,0.00033289,5]
[312896091,1706434240178,-500.0,0.00033424,2]
[312896093,1706434240187,-500.0,0.00033685,2]
[312896095,1706434240196,-1118.38544091,0.00033789,6]
[312896097,1706434240205,-500.0,0.00033945,2]
[312896099,1706434240214,-1000.0,0.00034,2]
[312896101,1706434240223,-331.89,0.00034029,2]
[312896103,1706434240233,-500.0,0.00034206,2]
[312896105,1706434240242,-208.0,0.00034362,16]
[312896107,1706434240251,-500.0,0.00034467,2]
[312896109,1706434240260,-254.21,0.000345,2]
[312896111,1706434240269,-254.21,0.000345,2]
[312896114,1706434240279,-254.21,0.000345,2]
[312896116,1706434240289,-254.21,0.000345,2]
[312896118,1706434240298,-254.21,0.000345,2]
[312896120,1706434240307,-254.21,0.000345,2]
[312896122,1706434240316,-254.21,0.000345,2]
[312896124,1706434240325,-254.21,0.000345,2]
[312896126,1706434240334,-254.21,0.000345,2]
[312896128,1706434240343,-254.21,0.000345,2]
[312896130,1706434240353,-254.21,0.000345,2]
[312896131,1706434240362,-254.21,0.000345,2]
[312896134,1706434240372,-254.21,0.000345,2]
[312896136,1706434240381,-254.21,0.000345,2]
[312896137,1706434240390,-254.21,0.000345,2]
[312896140,1706434240400,-254.21,0.000345,2]
[312896142,1706434240410,-254.21,0.000345,2]
[312896144,1706434240419,-254.21,0.000345,2]
[312896146,1706434240429,-254.21,0.000345,2]
[312896148,1706434240438,-254.21,0.000345,2]
[312896150,1706434240447,-150.0,0.00034548,10]
[312896152,1706434240456,-500.0,0.00034728,2]
[312896154,1706434240465,-500.0,0.00034988,2]
[312896156,1706434240475,-2323.45228506,0.00034998,4]
[312896158,1706434240484,-5223.33200777,0.00034999,4]
[312896160,1706434240493,-15274.52909841,0.00035,2]
[312896162,1706434240503,-5000.0,0.00035,3]
[312896164,1706434240512,-800.0,0.00035,3]
[312896166,1706434240521,-3000.0,0.00035,11]
[312896168,1706434240530,-192.31421206,0.00035,2]
[312896171,1706434240540,-10455.10855037,0.00035,2]
[312896174,1706434240549,-3000.0,0.0003501,11]
[312896176,1706434240557,-5515.736638,0.0003502,11]
[312896178,1706434240567,-1808.59703623,0.00035021,7]
[312896180,1706434240575,-500.0,0.00035249,2]
[312896182,1706434240584,-500.0,0.0003551,2]
[312896184,1706434240593,-3620.32,0.00035616,2]
[312896186,1706434240602,-368.25,0.000357,7]
[312896188,1706434240611,-194.48,0.000357,7]
[312896190,1706434240621,-325.39,0.000357,7]
[312896192,1706434240630,-500.0,0.00035771,2]
[312896194,1706434240639,-1490.0,0.000359,12]
[312896196,1706434240648,-526.83448559,0.00036,37]
[312896198,1706434240657,-250.09996125,0.00036,3]
[312896200,1706434240666,-500.0,0.00036031,2]
[312896202,1706434240675,-1000.0,0.00036195,10]
[312896204,1706434240684,-1000.0,0.00036195,10]
[312896206,1706434240694,-1000.0,0.00036195,10]
[312896208,1706434240705,-1000.0,0.00036195,10]
[312896210,1706434240714,-1000.0,0.00036195,10]
[312896212,1706434240723,-1000.0,0.00036195,10]
[312896214,1706434240732,-1000.0,0.00036195,10]
[312896216,1706434240741,-500.0,0.00036292,2]
[312896218,1706434240751,-331.89,0.00036293,2]
[312896220,1706434240760,-1000.0,0.00036363,10]
[312896222,1706434240768,-1000.0,0.00036363,10]
[312896224,1706434240777,-1000.0,0.00036363,10]
[312896226,1706434240787,-1000.0,0.00036363,10]
[312896228,1706434240796,-1000.0,0.00036363,10]
[312896230,1706434240806,-1000.0,0.00036363,10]
[312896232,1706434240815,-1000.0,0.00036363,10]
[312896234,1706434240824,-1000.0,0.00036363,10]
[312896236,1706434240833,-1000.0,0.00036363,10]
[312896238,1706434240843,-1000.0,0.00036454,10]
[312896240,1706434240851,-1118.38544091,0.00036511,8]
[312896242,1706434240861,-500.0,0.00036553,2]
[312896244,1706434240870,-1000.0,0.00036655,10]
[312896246,1706434240880,-1000.0,0.00036655,10]
[312896248,1706434240889,-1000.0,0.00036655,10]
[312896250,1706434240898,-1000.0,0.00036655,10]
[312896252,1706434240908,-1000.0,0.00036655,10]
[312896254,1706434240917,-1000.0,0.00036655,10]
[312896256,1706434240926,-1000.0,0.00036655,10]
[312896258,1706434240935,-226.24697518,0.00036655,6]
[312896260,1706434240944,-202.64178118,0.00036655,6]
[312896262,1706434240953,-281.03500832,0.00036655,6]
[312896264,1706434240962,-1000.0,0.00036655,10]
[312896266,1706434240971,-880.03099896,0.00036655,6]
[312896268,1706434240981,-423.26514237,0.00036655,6]
[312896270,1706434240990,-324.37671631,0.00036655,6]
[312896272,1706434240999,-618.94950709,0.00036655,6]
[312896274,1706434241007,-284.57902475,0.00036655,6]
[312896276,1706434241017,-285.90577861,0.00036655,6]
[312896278,1706434241026,-1000.0,0.00036655,10]
[312896280,1706434241035,-249.95386031,0.00036655,6]
[312896282,1706434241045,-379.2486799,0.00036655,6]
[312896284,1706434241054,-556.25201166,0.00036655,10]
[312896318,1706434241356,-443.74798834,0.00036655,10]
[312896320,1706434241365,-239.99964675,0.00036655,6]
[312896322,1706434241375,-413.5837485,0.00036655,10]
[312896325,1706434241387,-586.4162515,0.00036655,10]
[312896327,1706434241397,-51.4129347,0.00036655,2]
[312896330,1706434241416,-1648.79693044,0.00036655,2]
[312896332,1706434241427,-284.38306416,0.00036655,2]
[312896348,1706434241567,-772.58430032,0.00036655,2]
[312896361,1706434241679,-433.62209111,0.00036655,2]
[312896474,1706434243987,-8490.0,0.00036655,2]
[312896475,1706434244149,-52831.24452097,0.00036655,2]
[312896476,1706434244158,-609.43744989,0.00036655,6]
[312896477,1706434244168,-287.19072016,0.00036655,6]
[312896478,1706434244177,-402.0605383,0.00036655,6]
[312896479,1706434244188,-253.74118347,0.00036655,6]
[312896480,1706434244198,-315.86192291,0.00036655,6]
[312896481,1706434244207,-330.5335561,0.00036655,6]
[312896482,1706434244216,-1000.0,0.00036655,10]
[312896483,1706434244225,-68161.02419777,0.0003668,30]
[312896484,1706434244234,-25413.0,0.0003668,5]
[312896485,1706434244243,-1808.59703623,0.00036752,9]
[312896486,1706434244252,-2420.79106434,0.00036763,2]
[312896487,1706434244261,-500.0,0.00036814,2]
[312896488,1706434244271,-150.0,0.00037,7]
[312896489,1706434244280,-850.0,0.00037,3]
[312896490,1706434244289,-500.0,0.00037074,2]
[312896491,1706434244298,-1000.0,0.00037091,2]
[312896492,1706434244307,-500.0,0.00037335,2]
[312896493,1706434244316,-176.62997183,0.00037519,4]
[312896494,1706434244325,-500.0,0.00037596,2]
[312896495,1706434244334,-1355.73,0.000377,3]
[312896496,1706434244343,-368.25,0.000378,7]
[312896497,1706434244352,-194.48,0.000378,7]
[312896498,1706434244362,-26775.8475175,0.00037874,2]
[312896499,1706434244372,-5930.8843997,0.00037874,2]
[312896500,1706434244381,-1324.83665906,0.00037898,4]
[312896501,1706434244390,-163.2539854,0.00037899,2]
[312896502,1706434244399,-5628.25619398,0.000379,2]
[312896503,1706434244408,-473756.06985722,0.000379,3]
[312896504,1706434244420,-252.53,0.000379,3]
[312896508,1706434246290,-942.00261675,0.000379,3]
[312896509,1706434246347,-393.5794901,0.000379,3]
[312896510,1706434246359,-432.27653367,0.000379,3]
[312896511,1706434246371,-3717.25421335,0.000379,3]
[312896512,1706434246488,-9480.1821,0.000379,3]
[312896513,1706434246841,-34550.71800001,0.000379,3]
[312896514,1706434246885,-21032.49999998,0.000379,3]
[312896515,1706434246899,-342.01478654,0.000379,3]
[312896516,1706434246910,-1145.62654478,0.000379,3]
[312896517,1706434246928,-300.0,0.000379,3]
[312896518,1706434246940,-659.879398,0.000379,3]
[312896519,1706434246951,-319.290005,0.000379,3]
[312896520,1706434246963,-621.7494999,0.000379,3]
[312896521,1706434246974,-1998.25,0.000379,3]
[312896522,1706434246985,-2234.1,0.000379,3]
[312896523,1706434247005,-25700.96238155,0.000379,3]
[312896524,1706434247016,-35048.7527446,0.000379,3]
[312896525,1706434247027,-1899.32181629,0.000379,3]
[312896526,1706434247039,-3779.9999998,0.000379,3]
[312896527,1706434247050,-14978.59914164,0.000379,3]
[312896528,1706434247062,-672.78207722,0.000379,3]
[312896529,1706434247073,-404.04653892,0.000379,3]
[312896530,1706434247089,-2581.55187985,0.000379,3]
[312896531,1706434247100,-4598.5,0.000379,3]
[312896532,1706434266442,244.29697456,0.00021886,2]
[312896533,1706434272591,277.28625123,0.00021886,2]
[312896534,1706434275785,222.44117549,0.00021886,2]
[312896536,1706434930224,1099.55565881,0.00021886,2]
[312896537,1706435067356,-4200.0,0.00022815,2]
[312896538,1706435081741,-250.0,0.00022815,2]
[312896547,1706435432399,-841.6355419,0.00022814,2]
[312896548,1706435432409,-775.5819366,0.00022815,2]
[312896549,1706435432418,-207.0,0.00022815,2]
[312896550,1706435432428,-500.0,0.00022816,2]
[312896551,1706435432438,-500.0,0.00022816,2]
[312896552,1706435432450,-344.90198673,0.00023632,2]
[312896553,1706435432463,-155.09801327,0.00023632,2]
[312896554,1706435432472,-500.0,0.00024448,2]
[312896555,1706435432481,-300.0,0.00024899,2]
[312896556,1706435432491,-776.80825821,0.000249,2]
[312896557,1706435432503,-517.9614323,0.000249,2]
[312896558,1706435432515,-645.45702359,0.000249,2]
[312896559,1706435432527,-2551.19249114,0.000249,2]
[312896560,1706435432569,-4248.07882633,0.000249,2]
[312896561,1706435432579,-323.51152453,0.00025,2]
[312896562,1706435432588,-92.74246054,0.00025,2]
[312896563,1706435432600,-107.25753946,0.00025,2]
[312896564,1706435432610,-550.0,0.00025,3]
[312896565,1706435432620,-242.74246054,0.00025,2]
[312896567,1706435432632,-739.09812806,0.00025,2]
[312896573,1706435438337,-2029.1726099,0.00025,2]
[312896574,1706435438347,-500.0,0.00025264,2]
[312896575,1706435438357,-3321.69,0.00025264,2]
[312896576,1706435438366,-555.94112979,0.000253,2]
[312896577,1706435438377,-501.05887021,0.000253,2]
[312896578,1706435438386,-350.98112979,0.000253,2]
[312896579,1706435438397,-1727.79219821,0.000253,2]
[312896580,1706435438506,-353.24821662,0.000253,2]
[312896581,1706435438620,-2196.97845538,0.000253,2]
[312896582,1706435438633,-285.23719241,0.00025366,5]
[312896583,1706435438643,-193.961,0.00025367,2]
[312896584,1706435438653,-311.486,0.00025367,2]
[312896585,1706435438662,-500.0,0.00025425,2]
[312896586,1706435438672,-200.0,0.00025425,2]
[312896587,1706435438681,-500.0,0.0002608,2]
[312896589,1706435438690,-53.9472523,0.00026896,2]
[312896806,1706435440877,-446.0527477,0.00026896,2]
[312896809,1706435440887,-36.11991057,0.00027,3]
[312896816,1706435440934,-563.88008943,0.00027,3]
[312896833,1706435441085,-207.0,0.00027463,9]
[312896836,1706435441095,-376.10491055,0.00027712,2]
[312896838,1706435441107,-123.89508945,0.00027712,2]
[312896840,1706435441117,-200.0,0.00027743,3]
[312896842,1706435441126,-500.0,0.00028033,2]
[312896844,1706435441136,-200.0,0.00028033,2]
[312896846,1706435441146,-246.0351269,0.00028528,2]
[312897115,1706435443482,-253.9648731,0.00028528,2]
[312897117,1706435443492,-23.83335508,0.00029344,2]
[312897123,1706435443541,-476.16664492,0.00029344,2]
[312897125,1706435443551,-278.9,0.00029662,2]
[312897127,1706435443561,-155.267871,0.0003,4]
[312897129,1706435443570,-1611.50885751,0.0003,4]
[312897131,1706435443579,-203.38288789,0.0003,4]
[312897133,1706435443589,-1986.79001174,0.0003,2]
[312897135,1706435443598,-500.0,0.0003,2]
[312897137,1706435443608,-4088.81222285,0.0003,2]
[312897139,1706435443620,-1539.44397113,0.0003,2]
[312897141,1706435443629,-9659.87377421,0.0003,2]
[312897142,1706435443639,-1591.780697,0.0003,2]
[312897144,1706435443648,-155.0,0.0003,2]
[312897146,1706435443657,-500.0,0.0003016,2]
[312897148,1706435443666,-800.0,0.00030206,3]
[312897150,1706435443675,-500.0,0.00030642,2]
[312897152,1706435443685,-200.0,0.00030642,2]
[312897154,1706435443694,-500.0,0.00030976,2]
[312897156,1706435443703,-333.46,0.00031309,2]
[312897158,1706435443712,-250.0,0.00031541,2]
[312897159,1706435443721,-163.08,0.00031546,2]
[312897161,1706435443730,-9386.56155766,0.0003161,2]
[312897164,1706435443742,-9291.44844234,0.0003161,2]
[312897166,1706435443751,-500.0,0.00031792,2]
[312897168,1706435443760,-278.9,0.00031926,2]
[312897170,1706435443769,-156.45158618,0.00032,4]
[312897172,1706435443779,-207.0,0.00032112,16]
[312897174,1706435443788,-11.45212609,0.00032557,2]
[312897176,1706435443799,-138.54787391,0.00032557,2]
[312897178,1706435443809,-404.43,0.00032593,2]
[312897180,1706435443818,-417.82212609,0.00032608,2]
[312897183,1706435443837,-82.17787391,0.00032608,2]
[312897185,1706435443846,-496.98,0.00032915,2]
[312897187,1706435443855,-333.46,0.00032953,2]
[312897188,1706435443864,-500.0,0.0003296,2]
[312897189,1706435443873,-200.0,0.0003296,2]
[312897190,1706435443883,-2413.54,0.00032962,2]
[312897191,1706435443892,-1463.68,0.00032973,2]
[312897192,1706435443901,-1716.78142956,0.00033,4]
[312897193,1706435443910,-277.0,0.00033029,2]
[312897194,1706435443919,-163.08,0.00033123,2]
[312897195,1706435443929,-250.0,0.00033128,111]
[312897196,1706435443938,-500.0,0.00033424,2]
[312897197,1706435443947,-500.0,0.00033745,2]
[312897198,1706435443956,-404.43,0.00033799,2]
[312897199,1706435443966,-500.0,0.00034066,2]
[312897200,1706435443975,-278.9,0.0003419,2]
[312897201,1706435443985,-1000.0,0.00034261,2]
[312897202,1706435443994,-603.4,0.00034365,2]
[312897203,1706435444004,-159.53,0.00034366,120]
[312897204,1706435444013,-500.0,0.00034387,2]
[312897205,1706435444023,-155.08,0.00034527,2]
[312897206,1706435444032,-150.0,0.00034548,10]
[312897207,1706435444041,-333.46,0.00034597,2]
[312897208,1706435444051,-250.0,0.00034645,2]
[312897209,1706435444061,-163.08,0.000347,2]
[312897210,1706435444071,-500.0,0.00034708,2]
[312897211,1706435444082,-254.21,0.000348,2]
[312897213,1706435444091,-254.21,0.000348,2]
[312897215,1706435444100,-254.21,0.000348,2]
[312897217,1706435444110,-254.21,0.000348,2]
[312897219,1706435444120,-254.21,0.000348,2]
[312897220,1706435444130,-254.21,0.000348,2]
[312897221,1706435444139,-254.21,0.000348,2]
[312897222,1706435444149,-254.21,0.000348,2]
[312897223,1706435444158,-254.21,0.000348,2]
[312897224,1706435444168,-254.21,0.000348,2]
[312897225,1706435444177,-254.21,0.000348,2]
[312897226,1706435444187,-254.21,0.000348,2]
[312897227,1706435444196,-254.21,0.000348,2]
[312897229,1706435444205,-254.21,0.000348,2]
[312897232,1706435444215,-254.21,0.000348,2]
[312897233,1706435444225,-254.21,0.000348,2]
[312897234,1706435444235,-254.21,0.000348,2]
[312897235,1706435444244,-254.21,0.000348,2]
[312897236,1706435444253,-254.21,0.000348,2]
[312897237,1706435444262,-254.21,0.000348,2]
[312897238,1706435444272,-155.93591757,0.00035,4]
[312897239,1706435444281,-5000.0,0.00035,3]
[312897240,1706435444292,-3000.0,0.00035,11]
[312897241,1706435444301,-404.43,0.00035004,2]
[312897242,1706435444311,-3000.0,0.0003501,11]
[312897243,1706435444320,-5515.736638,0.0003502,11]
[312897244,1706435444332,-500.0,0.00035029,2]
[312897245,1706435444341,-500.0,0.00035278,2]
[312897246,1706435444350,-200.0,0.00035278,2]
[312897247,1706435444360,-500.0,0.00035349,2]
[312897248,1706435444369,-500.0,0.0003567,2]
[312897249,1706435444379,-1490.0,0.000359,12]
[312897250,1706435444389,-500.0,0.00035991,2]
[312897251,1706435444398,-300.46831025,0.00036,4]
[312897252,1706435444409,-153.21533482,0.00036005,2]
[312897253,1706435444418,-404.43,0.0003621,2]
[312897254,1706435444427,-333.46,0.00036241,2]
[312897255,1706435444437,-163.08,0.00036278,2]
[312897256,1706435444447,-500.0,0.00036312,2]
[312897257,1706435444456,-278.9,0.00036454,2]
[312897258,1706435444466,-180.0,0.00036454,2]
[312897259,1706435444475,-527.42,0.00036513,10]
[312897260,1706435444484,-165.46800915,0.00036514,2]
[312897261,1706435444494,-12500.00404451,0.00036523,2]
[312897262,1706435444503,-16295.84569496,0.00036524,2]
[312897263,1706435444516,-323.78429081,0.00036524,2]
[312897264,1706435444528,-10675.39934671,0.00036524,2]
[312897265,1706435444540,-11338.99673947,0.00036524,2]
[312897267,1706435446454,-45358.73711471,0.00036524,2]
[312897268,1706435446477,-1567.42835497,0.00036524,2]
[312897269,1706435446489,-684.33398026,0.00036524,2]
[312897270,1706435446501,-527.92303629,0.00036524,2]
[312897271,1706435446513,-12037.62196938,0.00036524,2]
[312897272,1706435446525,-431.885,0.00036524,2]
[312897273,1706435446537,-288.48807854,0.00036524,2]
[312897274,1706435446548,-2356.27344761,0.00036524,2]
[312897275,1706435446559,-674.79429573,0.00036524,2]
[312897276,1706435446580,-261.133,0.00036524,2]
[312897277,1706435448787,-348.77523253,0.00036524,2]
[312897278,1706435448799,-1493.05461636,0.00036524,2]
[312897279,1706435448816,-343.9771644,0.00036524,2]
[312897280,1706435448827,-2294.13089432,0.00036524,2]
[312897281,1706435448852,-791.65526421,0.00036524,2]
[312897286,1706435644411,208.0,0.00021815,2]
[312897287,1706435648483,1500.0,0.0002,2]
[312897294,1706435763434,352.86,0.00022,2]
[312897295,1706435767261,950.5723033,0.00022,2]
[312897299,1706435787721,-2000.0,0.000228,2]
[312897300,1706435788168,-480.58290175,0.000228,2]
[312897301,1706435788191,-522.0047706,0.00022801,2]
[312897302,1706435788212,-997.41232765,0.00022801,2]
[312897303,1706435788520,-46.57483131,0.00022801,2]
[312897304,1706435788541,-1953.42516869,0.00022802,2]
[312897305,1706435788889,-2000.0,0.00022802,2]
[312897306,1706435789228,-1272.15676791,0.00022802,2]
[312897307,1706435789249,-727.84323209,0.00022802,2]
[312897309,1706435800327,1964.99596028,0.00022308,2]
[312897310,1706435800514,150.0,0.00022,2]
[312897312,1706435807484,-154.48396555,0.00022548,2]
[312897313,1706435807505,-638.53991907,0.00022802,2]
[312897315,1706435824123,1206.97611538,0.0002189,2]
[312897316,1706435824144,2000.0,0.0002189,2]
[312897317,1706435824165,2000.0,0.0002189,2]
[312897318,1706435824187,2000.0,0.0002189,2]
[312897319,1706435824209,2000.0,0.0002189,2]
[312897320,1706435824230,1889.02300412,0.0002189,2]
[312897327,1706435942128,6000.0,0.00021781,2]
[312897328,1706435953826,-495.4850043,0.00022768,2]
[312897335,1706436020130,235.68344128,0.00022654,2]
[312897336,1706436020840,1099.96809581,0.00022768,2]
[312897337,1706436034811,168.86345861,0.00022768,2]
[312897338,1706436034833,119.22673186,0.00022768,2]
[312897341,1706436115767,851.05,0.00022263,2]
[312897342,1706436179646,158.38,0.00022278,2]
[312897343,1706436179847,158.38,0.0002251,2]
[312897344,1706436180061,158.38,0.00022742,2]
[312897346,1706436257235,323.98,0.0002027,2]
[312897347,1706436257442,230.60326814,0.00022534,2]
[312897348,1706436257464,93.37673186,0.00022534,2]
[312897349,1706436302496,1906.62326814,0.00022008,2]
[312897350,1706436302519,381.82673186,0.00022008,2]
[312897351,1706436377641,250.0,0.00021976,2]
[312897352,1706436378685,277.0,0.00021976,2]
[312897353,1706436420502,163.08,0.00021975,2]
[312897357,1706436491481,928.09326814,0.00022004,2]
[312897358,1706436491503,71.90673186,0.00022004,2]
[312897359,1706436507278,371.95881086,0.00022802,2]
[312897361,1706436542749,1556.13445728,0.00022802,2]
[312897362,1706436542780,1640.36982195,0.00022802,2]
[312897364,1706436558789,359.63017805,0.00022078,2]
[312897365,1706436558811,2000.0,0.00022078,2]
[312897366,1706436558833,474.50956378,0.00022078,2]
[312897372,1706436613406,157.14,0.00022132,2]
[312897373,1706436613579,157.14,0.00022516,2]
[312897378,1706436631568,-533.3554065,0.0002281,2]
[312897379,1706436631580,-284.02379985,0.00022811,2]
[312897380,1706436631590,-500.0,0.00022816,2]
[312897381,1706436631601,-300.0,0.00022817,2]
[312897382,1706436631610,-95.65814976,0.00022817,2]
[312897383,1706436631806,-54.34185024,0.00022817,2]
[312897384,1706436631816,-339.11687388,0.00022818,2]
[312897385,1706436631836,-3060.50973781,0.00022818,2]
[312897388,1706436631848,-3085.92608726,0.00022818,2]
[312897392,1706436631861,-265.0000001,0.00022818,2]
[312897394,1706436631873,-628.062536,0.00022818,2]
[312897400,1706436631894,-334.84098344,0.00022818,2]
[312897418,1706436632352,-2086.42579147,0.00022818,2]
[312897419,1706436632363,-263.92000002,0.00022818,2]
[312897420,1706436632374,-2249.12802568,0.00022818,2]
[312897421,1706436632386,-541.24591888,0.00022818,2]
[312897422,1706436632397,-1550.31650381,0.00022818,2]
[312897423,1706436632417,-10296.81120001,0.00022818,2]
[312897439,1706436637564,-541.71234948,0.00022818,2]
[312897440,1706436637607,-1362.36959216,0.00022818,2]
[312897441,1706436637618,-1000.0,0.00022899,2]
[312897442,1706436637627,-433.4017,0.000229,2]
[312897443,1706436637637,-16538.7526,0.000229,2]
[312897444,1706436637647,-5000.0,0.000229,2]
[312897445,1706436637658,-4730.52788678,0.000229,2]
[312897446,1706436637667,-1249.87482486,0.000229,2]
[312897447,1706436637688,-4629.40887514,0.000229,2]
[312897448,1706436637698,-3408.2929,0.000229,2]
[312897449,1706436637707,-151.54077475,0.000229,2]
[312897450,1706436637717,-397.3657644,0.000229,2]
[312897451,1706436637726,-194.753558,0.000229,2]
[312897452,1706436637735,-1074.33933076,0.000229,2]
[312897453,1706436637745,-1613.24,0.00022901,2]
[312897454,1706436637754,-157.14,0.00022901,2]
[312897455,1706436637763,-499.99,0.00022904,2]
[312897456,1706436637772,-10345.46536385,0.00022904,2]
[312897457,1706436637782,-4730.52788671,0.00022905,2]
[312897458,1706436637792,-749.51,0.00022905,2]
[312897459,1706436637801,-4730.52788671,0.00022909,2]
[312897460,1706436637811,-176.06,0.00022909,2]
[312897461,1706436637822,-4730.52788671,0.00022914,2]
[312897462,1706436637831,-4730.52788671,0.00022918,2]
[312897463,1706436637841,-4730.52788671,0.00022923,2]
[312897464,1706436637850,-4730.52788671,0.00022927,2]
[312897465,1706436637860,-4730.52788671,0.00022932,2]
[312897466,1706436637869,-4730.52788671,0.00022936,2]
[312897467,1706436637879,-4730.52788671,0.00022941,2]
[312897469,1706436637889,-4730.52788671,0.00022945,2]
[312897471,1706436637898,-4730.52788671,0.0002295,2]
[312897473,1706436637907,-184.56047174,0.0002299,2]
[312897475,1706436637916,-184.56047174,0.0002299,2]
[312897477,1706436637926,-207.46851489,0.00022998,2]
[312897479,1706436637935,-2175.91100044,0.00022998,2]
[312897492,1706436638054,-549.6,0.00022998,2]
[312897494,1706436638064,-368.10929175,0.00022998,2]
[312897496,1706436638074,-428.50138446,0.00022998,2]
[312897498,1706436638083,-1262.42116645,0.00022998,2]
[312897501,1706436638093,-871.66828875,0.00022998,2]
[312897503,1706436638103,-155.0,0.00022998,2]
[312897505,1706436638112,-192.69490658,0.00022998,2]
[312897507,1706436638121,-1062.34025431,0.00022999,2]
[312897509,1706436638131,-1630.10557966,0.00022999,2]
[312897511,1706436638141,-533.85233306,0.00022999,2]
[312897513,1706436638150,-496.39049654,0.00022999,2]
[312897515,1706436638159,-500.0,0.00022999,2]
[312897517,1706436638168,-500.0,0.00022999,2]
[312897519,1706436638178,-287.36542955,0.00022999,2]
[312897521,1706436638188,-1488.37166338,0.00022999,2]
[312897523,1706436638197,-2595943.45683849,0.00023,2]
[312897525,1706436638209,-586.40889061,0.00023,2]
[312897527,1706436638220,-751.70837817,0.00023,2]
[312897529,1706436638231,-6197151.60639706,0.00023,2]
[312897533,1706436638251,-22164.43603885,0.00023,2]
[312897535,1706436638263,-44406.3714,0.00023,2]
[312897538,1706436638282,-297.24781902,0.00023,2]
[312897723,1706436640081,-2132.447,0.00023,2]
[312897725,1706436640093,-1033.25890674,0.00023,2]
[312897728,1706436640105,-433.47585455,0.00023,2]
[312897738,1706436640188,-2229.27473066,0.00023,2]
[312897806,1706436640901,-627.03729957,0.00023,2]
[312897808,1706436640913,-860.48638546,0.00023,2]
[312898015,1706436642885,-1387.30566841,0.00023,2]
[312898026,1706436643048,-430.80356823,0.00023,2]
[312898059,1706436645584,-533.3554065,0.00022999,2]
[312898060,1706436645594,-52.6345935,0.00023,2]
[312898061,1706436645640,-253.80573163,0.00023,2]
[312898062,1706436645653,-22959.99999993,0.00023,2]
[312898063,1706436645860,-56263.03199999,0.00023,2]
[312898064,1706436645873,-42580.00000003,0.00023,2]
[312898065,1706436645885,-197228.98012599,0.00023,2]
[312898066,1706436645918,-2111.27090847,0.00023,2]
[312898067,1706436645930,-530.20546876,0.00023,2]
[312898078,1706436650751,1211.21043622,0.00022079,2]
[312898079,1706436650773,1979.39996199,0.00022079,2]
[312898080,1706436654671,546.58068642,0.00022078,7]
[312898082,1706436662481,20.60003801,0.00022308,2]
[312898083,1706436662504,2458.4584839,0.00022308,2]
[312898084,1706436678661,472.03281916,0.00023,7]
[312898087,1706436707670,-247.42374992,0.00022768,2]
[312898088,1706436707693,-19823.7051,0.00022899,2]
[312898089,1706436707721,-5000.0,0.000229,2]
[312898090,1706436707745,-48847.6689,0.000229,2]